[Event "*** Titled Tuesday Blitz"]
[Site "Chess.com"]
[Date "2019.12.03"]
[Round "1"]
[White "mitrabhaa"]
[Black "Everyfishknows"]
[Result "1-0"]
[WhiteElo "2635"]
[BlackElo "2303"]
[TimeControl "180+2"]
[EndTime "13:07:29 PST"]
[Termination "mitrabhaa won by resignation"]

1. Nf3 {[%clk 0:02:59.5]} 1... Nf6 {[%clk 0:03:00.7]} 2. g3 {[%clk 0:02:56.7]}
2... g6 {[%clk 0:03:01.2]} 3. Bg2 {[%clk 0:02:57.5]} 3... Bg7 {[%clk 0:03:03.1]}
4. O-O {[%clk 0:02:57.9]} 4... O-O {[%clk 0:03:05]} 5. d4 {[%clk 0:02:57.3]}
5... d6 {[%clk 0:03:06.9]} 6. a4 {[%clk 0:02:57.8]} 6... a5 {[%clk 0:03:02.4]}
7. Nc3 {[%clk 0:02:56.6]} 7... Nbd7 {[%clk 0:03:02.1]} 8. e4 {[%clk 0:02:54.2]}
8... e5 {[%clk 0:03:03.1]} 9. h3 {[%clk 0:02:50.2]} 9... c6 {[%clk 0:03:02.9]}
10. Be3 {[%clk 0:02:47.2]} 10... Qc7 {[%clk 0:02:57.1]} 11. Qd2 {[%clk
0:02:44.2]} 11... Re8 {[%clk 0:02:57.3]} 12. Rad1 {[%clk 0:02:44.6]} 12... exd4
{[%clk 0:02:54.5]} 13. Nxd4 {[%clk 0:02:45.3]} 13... Nc5 {[%clk 0:02:55.8]} 14.
f3 {[%clk 0:02:39.5]} 14... d5 {[%clk 0:02:43.1]} 15. exd5 {[%clk 0:02:33]}
15... Nxd5 {[%clk 0:02:09.8]} 16. Nxd5 {[%clk 0:02:32.2]} 16... cxd5 {[%clk
0:02:10.8]} 17. Bf2 {[%clk 0:02:29]} 17... Bd7 {[%clk 0:02:02.9]} 18. b3 {[%clk
0:02:29.4]} 18... Ne6 {[%clk 0:02:02.4]} 19. f4 {[%clk 0:02:28.6]} 19... Nxd4
{[%clk 0:01:57.9]} 20. Bxd4 {[%clk 0:02:29.4]} 20... Rac8 {[%clk 0:01:59.8]} 21.
Rf2 {[%clk 0:02:27.5]} 21... Be6 {[%clk 0:01:51.9]} 22. Bxg7 {[%clk 0:02:25.7]}
22... Kxg7 {[%clk 0:01:52.8]} 23. g4 {[%clk 0:02:27.1]} 23... Qc3 {[%clk
0:01:28.8]} 24. f5 {[%clk 0:02:26.1]} 24... Bd7 {[%clk 0:01:24.8]} 25. fxg6
{[%clk 0:02:20.4]} 25... Qxd2 {[%clk 0:01:19.9]} 26. Rdxd2 {[%clk 0:02:19.8]}
26... hxg6 {[%clk 0:01:21]} 27. Bxd5 {[%clk 0:02:20.1]} 27... Be6 {[%clk
0:01:16.6]} 28. Bxb7 {[%clk 0:02:19.7]} 28... Rc3 {[%clk 0:01:17.5]} 29. Kg2
{[%clk 0:02:20.4]} 29... Rh8 {[%clk 0:01:11.5]} 30. Rf3 {[%clk 0:02:20.1]} 30...
Rc7 {[%clk 0:01:09.1]} 31. Be4 {[%clk 0:02:19.3]} 31... Rb8 {[%clk 0:01:01.7]}
32. Rfd3 {[%clk 0:02:17.5]} 32... Rb4 {[%clk 0:00:58.8]} 33. Bf3 {[%clk
0:02:18.3]} 33... g5 {[%clk 0:00:51.5]} 34. Rd6 {[%clk 0:02:18.1]} 34... Rc3
{[%clk 0:00:43.3]} 35. Rc6 {[%clk 0:02:16.2]} 35... Re3 {[%clk 0:00:38.9]} 36.
Rc5 {[%clk 0:02:16.7]} 36... Rf4 {[%clk 0:00:37.8]} 37. Ba8 {[%clk 0:02:14.2]}
37... Kf6 {[%clk 0:00:37.2]} 38. Rxa5 {[%clk 0:02:10.2]} 38... Re1 {[%clk
0:00:32.8]} 39. Rc5 {[%clk 0:02:05.9]} 39... Rff1 {[%clk 0:00:33]} 40. Rf2+
{[%clk 0:02:06.3]} 40... Rxf2+ {[%clk 0:00:30.6]} 41. Kxf2 {[%clk 0:02:07.5]}
41... Rc1 {[%clk 0:00:31.1]} 42. a5 {[%clk 0:02:01.6]} 42... Bxb3 {[%clk
0:00:30.4]} 43. a6 {[%clk 0:01:59.3]} 43... Be6 {[%clk 0:00:26.5]} 44. a7 {[%clk
0:01:54.5]} 44... Ra1 {[%clk 0:00:26.5]} 45. Rc7 {[%clk 0:01:55.6]} 1-0

[Event "*** Titled Tuesday Blitz"]
[Site "Chess.com"]
[Date "2019.12.03"]
[Round "1"]
[White "GCamachoMartinez"]
[Black "JonahWillow"]
[Result "0-1"]
[WhiteElo "2431"]
[BlackElo "2789"]
[TimeControl "180+2"]
[EndTime "13:07:36 PST"]
[Termination "JonahWillow won by checkmate"]

1. d4 {[%clk 0:03:01.9]} 1... Nf6 {[%clk 0:03:00.4]} 2. c4 {[%clk 0:03:02.8]}
2... e6 {[%clk 0:03:02.3]} 3. Nf3 {[%clk 0:03:01.5]} 3... c5 {[%clk 0:03:03.9]}
4. g3 {[%clk 0:03:01.9]} 4... cxd4 {[%clk 0:03:04.4]} 5. Nxd4 {[%clk 0:03:03]}
5... Nc6 {[%clk 0:03:06.3]} 6. Bg2 {[%clk 0:03:02.8]} 6... Qb6 {[%clk
0:03:06.8]} 7. Nxc6 {[%clk 0:03:02.6]} 7... bxc6 {[%clk 0:03:07.6]} 8. O-O
{[%clk 0:03:03.1]} 8... d5 {[%clk 0:03:07.6]} 9. Nd2 {[%clk 0:02:58.9]} 9... Be7
{[%clk 0:02:50.1]} 10. b3 {[%clk 0:02:59.4]} 10... O-O {[%clk 0:02:50]} 11. Bb2
{[%clk 0:03:00.4]} 11... Bb7 {[%clk 0:02:50.2]} 12. Qc2 {[%clk 0:03:01.3]} 12...
c5 {[%clk 0:02:46.9]} 13. cxd5 {[%clk 0:02:59.8]} 13... exd5 {[%clk 0:02:44.4]}
14. e4 {[%clk 0:03:00.7]} 14... d4 {[%clk 0:02:41.2]} 15. Nc4 {[%clk 0:03:01.7]}
15... Qe6 {[%clk 0:02:41.9]} 16. Rfe1 {[%clk 0:03:00.9]} 16... Rad8 {[%clk
0:02:40.6]} 17. e5 {[%clk 0:02:58.1]} 17... Nd5 {[%clk 0:02:31.3]} 18. a3 {[%clk
0:02:41.6]} 18... Ba8 {[%clk 0:02:28.4]} 19. Rad1 {[%clk 0:02:41.7]} 19... Nb6
{[%clk 0:02:22.9]} 20. Bxa8 {[%clk 0:02:39.5]} 20... Rxa8 {[%clk 0:02:24.1]} 21.
Na5 {[%clk 0:02:23.1]} 21... Rac8 {[%clk 0:02:15.4]} 22. Rc1 {[%clk 0:02:22]}
22... Rfd8 {[%clk 0:02:12.5]} 23. Qd3 {[%clk 0:02:21.3]} 23... Nd5 {[%clk
0:02:02.5]} 24. Nc4 {[%clk 0:02:20.3]} 24... Qg4 {[%clk 0:01:58.5]} 25. f3
{[%clk 0:02:15.9]} 25... Qg5 {[%clk 0:01:55.4]} 26. Qe4 {[%clk 0:02:11.8]} 26...
Nc7 {[%clk 0:01:39.7]} 27. f4 {[%clk 0:02:12.4]} 27... Qg4 {[%clk 0:01:40.3]}
28. Kg2 {[%clk 0:01:56.4]} 28... Rb8 {[%clk 0:01:27.4]} 29. Nd2 {[%clk
0:01:56.3]} 29... Nd5 {[%clk 0:01:26.1]} 30. h3 {[%clk 0:01:22.7]} 30... Qd7
{[%clk 0:01:18.3]} 31. f5 {[%clk 0:01:23.1]} 31... Ne3+ {[%clk 0:01:18.7]} 32.
Rxe3 {[%clk 0:01:14.4]} 32... dxe3 {[%clk 0:01:19.6]} 33. Nc4 {[%clk 0:01:13.5]}
33... Rxb3 {[%clk 0:01:16.7]} 34. Bc3 {[%clk 0:00:44.6]} 34... Qd3 {[%clk
0:01:05.8]} 35. Qxd3 {[%clk 0:00:20.7]} 35... Rxd3 {[%clk 0:01:07.7]} 36. Ba1
{[%clk 0:00:21.6]} 36... e2 {[%clk 0:01:05.3]} 37. Re1 {[%clk 0:00:21.3]} 37...
Rxg3+ {[%clk 0:01:05.4]} 38. Kf2 {[%clk 0:00:21.6]} 38... Rxh3 {[%clk 0:01:06]}
39. Kxe2 {[%clk 0:00:20]} 39... Rh2+ {[%clk 0:01:05.6]} 40. Kd1 {[%clk
0:00:18.2]} 40... Rb1# {[%clk 0:01:06.4]} 0-1

[Event "*** Titled Tuesday Blitz"]
[Site "Chess.com"]
[Date "2019.12.03"]
[Round "1"]
[White "vladimirdamjanovic"]
[Black "norwaytoadog"]
[Result "0-1"]
[WhiteElo "2599"]
[BlackElo "2307"]
[TimeControl "180+2"]
[EndTime "13:07:38 PST"]
[Termination "norwaytoadog won by checkmate"]

1. d4 {[%clk 0:03:01.9]} 1... Nf6 {[%clk 0:02:59.6]} 2. Bf4 {[%clk 0:03:02.9]}
2... e6 {[%clk 0:02:59.6]} 3. e3 {[%clk 0:03:03.8]} 3... c5 {[%clk 0:03:00.2]}
4. c3 {[%clk 0:03:04.8]} 4... d5 {[%clk 0:03:00.2]} 5. Nd2 {[%clk 0:03:05.2]}
5... Nc6 {[%clk 0:03:00.1]} 6. Ngf3 {[%clk 0:03:06.3]} 6... Bd6 {[%clk
0:02:59.7]} 7. Bg3 {[%clk 0:03:06.7]} 7... b6 {[%clk 0:02:58.6]} 8. Bb5 {[%clk
0:02:47.2]} 8... Bb7 {[%clk 0:02:43.9]} 9. Ne5 {[%clk 0:02:43.4]} 9... Bxe5
{[%clk 0:02:39]} 10. Bxe5 {[%clk 0:02:42.2]} 10... O-O {[%clk 0:02:36.6]} 11.
Bg3 {[%clk 0:02:40.3]} 11... Ne7 {[%clk 0:02:27.3]} 12. Bd3 {[%clk 0:02:35.2]}
12... Ne4 {[%clk 0:02:25.2]} 13. Qc2 {[%clk 0:02:23.9]} 13... f5 {[%clk
0:02:12.8]} 14. f3 {[%clk 0:02:09.6]} 14... Nxg3 {[%clk 0:01:58.2]} 15. hxg3
{[%clk 0:02:11.5]} 15... Qd6 {[%clk 0:01:58.8]} 16. f4 {[%clk 0:01:52]} 16... c4
{[%clk 0:01:59.3]} 17. Be2 {[%clk 0:01:48]} 17... b5 {[%clk 0:01:59.1]} 18. g4
{[%clk 0:01:42.2]} 18... b4 {[%clk 0:01:56]} 19. Kf2 {[%clk 0:01:12.5]} 19...
Bc6 {[%clk 0:01:42.4]} 20. Nf3 {[%clk 0:00:31.3]} 20... Be8 {[%clk 0:01:23.2]}
21. Ne5 {[%clk 0:00:27]} 21... Bg6 {[%clk 0:01:16]} 22. g5 {[%clk 0:00:24.6]}
22... Rab8 {[%clk 0:01:12.4]} 23. Bh5 {[%clk 0:00:17.6]} 23... bxc3 {[%clk
0:01:07.6]} 24. bxc3 {[%clk 0:00:12.8]} 24... Qa3 {[%clk 0:01:08.3]} 25. Rab1
{[%clk 0:00:03.6]} 25... Bxh5 {[%clk 0:00:52.4]} 26. Rxh5 {[%clk 0:00:04.6]}
26... Rxb1 {[%clk 0:00:52.3]} 27. Qxb1 {[%clk 0:00:06.1]} 27... Qxc3 {[%clk
0:00:53.3]} 28. Qb7 {[%clk 0:00:02.9]} 28... Qd2+ {[%clk 0:00:52.2]} 29. Kg3
{[%clk 0:00:02.7]} 29... Qxe3+ {[%clk 0:00:52.5]} 30. Kh2 {[%clk 0:00:04]} 30...
Qxf4+ {[%clk 0:00:52]} 31. Kg1 {[%clk 0:00:03.5]} 31... Qxd4+ {[%clk 0:00:52.5]}
32. Kh2 {[%clk 0:00:04.9]} 32... Qxe5+ {[%clk 0:00:53.5]} 33. Kh1 {[%clk
0:00:05.9]} 33... Rb8 {[%clk 0:00:52.2]} 34. Qxe7 {[%clk 0:00:07.2]} 34... Rb1#
{[%clk 0:00:52.9]} 0-1

[Event "*** Titled Tuesday Blitz"]
[Site "Chess.com"]
[Date "2019.12.03"]
[Round "1"]
[White "ruvat"]
[Black "Faustregel"]
[Result "0-1"]
[WhiteElo "2362"]
[BlackElo "2736"]
[TimeControl "180+2"]
[EndTime "13:07:39 PST"]
[Termination "Faustregel won by resignation"]

1. d4 {[%clk 0:03:01.4]} 1... f5 {[%clk 0:03:00.3]} 2. Nf3 {[%clk 0:03:00.6]}
2... Nf6 {[%clk 0:03:01.2]} 3. g3 {[%clk 0:03:01.6]} 3... g6 {[%clk 0:03:02.1]}
4. Bg2 {[%clk 0:03:03.1]} 4... Bg7 {[%clk 0:03:02.9]} 5. O-O {[%clk 0:03:04.6]}
5... O-O {[%clk 0:03:01.6]} 6. b3 {[%clk 0:03:05.7]} 6... b6 {[%clk 0:03:02.3]}
7. Bb2 {[%clk 0:03:06.4]} 7... Bb7 {[%clk 0:03:01.2]} 8. c4 {[%clk 0:03:07]}
8... Ne4 {[%clk 0:02:57.9]} 9. Nc3 {[%clk 0:03:05.5]} 9... e6 {[%clk 0:02:54.5]}
10. Rc1 {[%clk 0:03:05.1]} 10... Qe7 {[%clk 0:02:51.6]} 11. d5 {[%clk
0:03:05.1]} 11... Na6 {[%clk 0:02:49.8]} 12. Nd4 {[%clk 0:02:58.2]} 12... Nac5
{[%clk 0:02:45]} 13. e3 {[%clk 0:02:45.1]} 13... Nxc3 {[%clk 0:02:39.4]} 14.
Bxc3 {[%clk 0:02:44.7]} 14... e5 {[%clk 0:02:40.8]} 15. Nb5 {[%clk 0:02:38.1]}
15... d6 {[%clk 0:02:39.2]} 16. b4 {[%clk 0:02:32.9]} 16... Ne4 {[%clk
0:02:37.6]} 17. Ba1 {[%clk 0:02:29]} 17... a5 {[%clk 0:02:35.8]} 18. a3 {[%clk
0:02:20.6]} 18... Ba6 {[%clk 0:02:34.9]} 19. Qc2 {[%clk 0:02:18]} 19... axb4
{[%clk 0:02:26.6]} 20. axb4 {[%clk 0:02:17.8]} 20... Nf6 {[%clk 0:02:28]} 21.
Bb2 {[%clk 0:02:10.6]} 21... Rfc8 {[%clk 0:02:26.6]} 22. Rfd1 {[%clk 0:02:09.3]}
22... Bxb5 {[%clk 0:02:24]} 23. cxb5 {[%clk 0:02:09.4]} 23... e4 {[%clk
0:02:25.6]} 24. Bd4 {[%clk 0:02:06.3]} 24... Nd7 {[%clk 0:02:23.6]} 25. Bxg7
{[%clk 0:01:59.5]} 25... Qxg7 {[%clk 0:02:25.5]} 26. Rd4 {[%clk 0:01:50.1]}
26... Ne5 {[%clk 0:02:23.8]} 27. Qb3 {[%clk 0:01:40]} 27... Ra7 {[%clk 0:02:12]}
28. h3 {[%clk 0:01:24.2]} 28... Rca8 {[%clk 0:02:09.6]} 29. Qc3 {[%clk
0:01:20.4]} 29... Ra3 {[%clk 0:01:57.2]} 30. Qxc7 {[%clk 0:01:13.1]} 30... Qxc7
{[%clk 0:01:48]} 31. Rxc7 {[%clk 0:01:15]} 31... Ra1+ {[%clk 0:01:49.4]} 32. Kh2
{[%clk 0:01:13.6]} 32... R8a2 {[%clk 0:01:50.9]} 33. g4 {[%clk 0:00:31.8]} 33...
Rxf2 {[%clk 0:01:47.9]} 34. Kg3 {[%clk 0:00:23.6]} 34... Raa2 {[%clk 0:01:48.6]}
35. Bh1 {[%clk 0:00:23.6]} 35... Rf1 {[%clk 0:01:33.9]} 36. Bxe4 {[%clk
0:00:19.7]} 36... fxe4 {[%clk 0:01:30.5]} 37. Rxe4 {[%clk 0:00:20.6]} 37... Rg1+
{[%clk 0:01:27.8]} 38. Kf4 {[%clk 0:00:16.6]} 38... Rf2+ {[%clk 0:01:27.5]} 39.
Kg5 {[%clk 0:00:15.7]} 39... Rf5+ {[%clk 0:01:15.1]} 0-1

[Event "*** Titled Tuesday Blitz"]
[Site "Chess.com"]
[Date "2019.12.03"]
[Round "1"]
[White "kacprekt"]
[Black "Sunrise777"]
[Result "0-1"]
[WhiteElo "2344"]
[BlackElo "2707"]
[TimeControl "180+2"]
[EndTime "13:07:53 PST"]
[Termination "Sunrise777 won by resignation"]

1. d4 {[%clk 0:03:01.9]} 1... Nf6 {[%clk 0:03:00.2]} 2. c4 {[%clk 0:03:02.7]}
2... c5 {[%clk 0:03:01.4]} 3. d5 {[%clk 0:03:03.4]} 3... b5 {[%clk 0:03:02.7]}
4. cxb5 {[%clk 0:03:02.7]} 4... a6 {[%clk 0:03:03.8]} 5. bxa6 {[%clk 0:03:03.3]}
5... g6 {[%clk 0:03:04.5]} 6. Nc3 {[%clk 0:03:04.4]} 6... Bg7 {[%clk 0:03:05.8]}
7. Nf3 {[%clk 0:03:05.4]} 7... O-O {[%clk 0:03:07]} 8. e4 {[%clk 0:03:05.5]}
8... Qa5 {[%clk 0:03:08.1]} 9. Bd2 {[%clk 0:02:51.2]} 9... Bxa6 {[%clk
0:03:08.1]} 10. e5 {[%clk 0:02:43.2]} 10... Ng4 {[%clk 0:03:02.6]} 11. Ne4
{[%clk 0:02:39.4]} 11... Qc7 {[%clk 0:02:44.3]} 12. d6 {[%clk 0:02:40.4]} 12...
exd6 {[%clk 0:02:44.8]} 13. exd6 {[%clk 0:02:41.5]} 13... Qc6 {[%clk 0:02:42.3]}
14. Nfg5 {[%clk 0:02:36.8]} 14... f5 {[%clk 0:02:32.8]} 15. Bxa6 {[%clk
0:02:34.1]} 15... Qxa6 {[%clk 0:02:29.3]} 16. Bc3 {[%clk 0:02:18.7]} 16... Bxc3+
{[%clk 0:02:07.5]} 17. bxc3 {[%clk 0:02:15.3]} 17... Qc4 {[%clk 0:02:06.8]} 18.
h3 {[%clk 0:01:10.9]} 18... Ne5 {[%clk 0:01:22.7]} 19. Nd2 {[%clk 0:01:09]}
19... Nd3+ {[%clk 0:01:19.3]} 20. Kf1 {[%clk 0:01:08.6]} 20... Qxc3 {[%clk
0:01:11]} 21. Kg1 {[%clk 0:01:06.8]} 21... Nc6 {[%clk 0:01:08.4]} 22. Ngf3
{[%clk 0:00:59.4]} 22... Nd4 {[%clk 0:01:05.2]} 23. Nxd4 {[%clk 0:00:59.1]}
23... Qxd4 {[%clk 0:01:05.3]} 24. Qb3+ {[%clk 0:00:59.1]} 24... Kg7 {[%clk
0:01:05.2]} 25. Rf1 {[%clk 0:00:54.4]} 25... Rfb8 {[%clk 0:01:02.2]} 26. Nf3
{[%clk 0:00:40.9]} 26... Rxb3 {[%clk 0:00:57.6]} 27. Nxd4 {[%clk 0:00:40.5]}
27... Rb2 {[%clk 0:00:55.2]} 28. Nf3 {[%clk 0:00:34.1]} 28... Raxa2 {[%clk
0:00:54.3]} 29. Rd1 {[%clk 0:00:30.9]} 29... Nxf2 {[%clk 0:00:53.4]} 30. Re1
{[%clk 0:00:26.7]} 30... Ne4 {[%clk 0:00:54.2]} 31. Rh2 {[%clk 0:00:26.4]} 31...
c4 {[%clk 0:00:51.5]} 32. Ne5 {[%clk 0:00:26]} 32... c3 {[%clk 0:00:51.2]} 33.
Nxd7 {[%clk 0:00:26.8]} 33... c2 {[%clk 0:00:51.1]} 34. g4 {[%clk 0:00:13.6]}
34... Rb1 {[%clk 0:00:51.7]} 35. Re2 {[%clk 0:00:12.6]} 35... c1=Q {[%clk
0:00:48.1]} 0-1

[Event "*** Titled Tuesday Blitz"]
[Site "Chess.com"]
[Date "2019.12.03"]
[Round "1"]
[White "visa"]
[Black "MPGM"]
[Result "0-1"]
[WhiteElo "2256"]
[BlackElo "2608"]
[TimeControl "180+2"]
[EndTime "13:07:53 PST"]
[Termination "MPGM won on time"]

1. e4 {[%clk 0:00:53.3]} 1... e5 {[%clk 0:02:56.4]} 2. Nf3 {[%clk 0:00:53.7]}
2... Nc6 {[%clk 0:02:55]} 3. Bb5 {[%clk 0:00:54]} 3... a6 {[%clk 0:02:55.6]} 4.
Ba4 {[%clk 0:00:54]} 4... Nf6 {[%clk 0:02:56.8]} 5. d3 {[%clk 0:00:55]} 5... d6
{[%clk 0:02:53.7]} 6. O-O {[%clk 0:00:55.7]} 6... Be7 {[%clk 0:02:51.7]} 7. c3
{[%clk 0:00:56.6]} 7... b5 {[%clk 0:02:50.3]} 8. Bb3 {[%clk 0:00:56.5]} 8... O-O
{[%clk 0:02:48.5]} 9. Re1 {[%clk 0:00:57.3]} 9... Na5 {[%clk 0:02:48.8]} 10. Bc2
{[%clk 0:00:58.1]} 10... c5 {[%clk 0:02:50.3]} 11. Nbd2 {[%clk 0:00:58.4]} 11...
Nc6 {[%clk 0:02:50.6]} 12. Nf1 {[%clk 0:00:58.9]} 12... Re8 {[%clk 0:02:49.9]}
13. h3 {[%clk 0:01:00.1]} 13... h6 {[%clk 0:02:48]} 14. Be3 {[%clk 0:00:58.3]}
14... Bf8 {[%clk 0:02:47.7]} 15. Ng3 {[%clk 0:00:56.8]} 15... d5 {[%clk
0:02:39.8]} 16. exd5 {[%clk 0:00:48.8]} 16... Nxd5 {[%clk 0:02:39.3]} 17. Bd2
{[%clk 0:00:50]} 17... Bb7 {[%clk 0:02:23.1]} 18. a4 {[%clk 0:00:50.4]} 18... b4
{[%clk 0:02:17.6]} 19. c4 {[%clk 0:00:47.7]} 19... Nf6 {[%clk 0:02:11.2]} 20.
Be3 {[%clk 0:00:43.1]} 20... Nd4 {[%clk 0:02:06.4]} 21. Bxd4 {[%clk 0:00:40.5]}
21... exd4 {[%clk 0:02:02.7]} 22. Nd2 {[%clk 0:00:34.4]} 22... Qc7 {[%clk
0:01:56.4]} 23. Rxe8 {[%clk 0:00:31]} 23... Rxe8 {[%clk 0:01:56.8]} 24. Nde4
{[%clk 0:00:30.6]} 24... Nxe4 {[%clk 0:01:49.5]} 25. Nxe4 {[%clk 0:00:30.6]}
25... f5 {[%clk 0:01:45.2]} 26. Nd2 {[%clk 0:00:27.6]} 26... Qf4 {[%clk
0:01:27.9]} 27. a5 {[%clk 0:00:18.1]} 27... Bd6 {[%clk 0:01:27.6]} 28. Nf1
{[%clk 0:00:17.3]} 28... Re6 {[%clk 0:01:21.1]} 29. g3 {[%clk 0:00:11.7]} 29...
Qe5 {[%clk 0:00:53.5]} 30. Qh5 {[%clk 0:00:10.6]} 30... Kh7 {[%clk 0:00:46.1]}
31. Qh4 {[%clk 0:00:06.6]} 31... f4 {[%clk 0:00:43.1]} 32. g4 {[%clk 0:00:03.9]}
32... Bc6 {[%clk 0:00:39.2]} 33. Bd1 {[%clk 0:00:03.6]} 33... g5 {[%clk
0:00:38.7]} 0-1

[Event "*** Titled Tuesday Blitz"]
[Site "Chess.com"]
[Date "2019.12.03"]
[Round "1"]
[White "Dr-Bassem"]
[Black "Hanging_pointer"]
[Result "1-0"]
[WhiteElo "2781"]
[BlackElo "2411"]
[TimeControl "180+2"]
[EndTime "13:07:57 PST"]
[Termination "Dr-Bassem won by checkmate"]

1. e4 {[%clk 0:03:01.9]} 1... c5 {[%clk 0:02:59.6]} 2. Nf3 {[%clk 0:03:01.9]}
2... d6 {[%clk 0:03:00.8]} 3. g3 {[%clk 0:03:02.3]} 3... Nc6 {[%clk 0:03:01.1]}
4. Bg2 {[%clk 0:03:03.5]} 4... g6 {[%clk 0:03:01.2]} 5. O-O {[%clk 0:03:04.9]}
5... Bg7 {[%clk 0:03:02.6]} 6. c3 {[%clk 0:03:06.3]} 6... e5 {[%clk 0:03:03.6]}
7. a3 {[%clk 0:03:02.6]} 7... Nge7 {[%clk 0:03:02.6]} 8. b4 {[%clk 0:03:03.1]}
8... b6 {[%clk 0:03:04.1]} 9. Bb2 {[%clk 0:03:00.1]} 9... O-O {[%clk 0:02:57.8]}
10. d4 {[%clk 0:03:01.3]} 10... cxd4 {[%clk 0:02:54.5]} 11. cxd4 {[%clk
0:03:03.2]} 11... Bg4 {[%clk 0:02:55.8]} 12. d5 {[%clk 0:03:00.8]} 12... Nd4
{[%clk 0:02:55.5]} 13. Bxd4 {[%clk 0:02:56.9]} 13... exd4 {[%clk 0:02:57.4]} 14.
Nbd2 {[%clk 0:02:57.7]} 14... f5 {[%clk 0:02:55]} 15. Qb3 {[%clk 0:02:50.4]}
15... Kh8 {[%clk 0:02:45.6]} 16. Ng5 {[%clk 0:02:46]} 16... fxe4 {[%clk
0:02:19.4]} 17. Ndxe4 {[%clk 0:02:44]} 17... Qd7 {[%clk 0:02:08.9]} 18. Rae1
{[%clk 0:02:37.3]} 18... Rac8 {[%clk 0:01:59.5]} 19. h3 {[%clk 0:02:33.6]} 19...
Bf5 {[%clk 0:01:58.2]} 20. g4 {[%clk 0:02:28.6]} 20... Bxe4 {[%clk 0:01:59.4]}
21. Rxe4 {[%clk 0:02:27.3]} 21... Rc3 {[%clk 0:01:59.7]} 22. Qa2 {[%clk
0:02:28.6]} 22... Be5 {[%clk 0:01:45.5]} 23. f4 {[%clk 0:02:23.4]} 23... Bf6
{[%clk 0:01:45.7]} 24. Ne6 {[%clk 0:02:24.8]} 24... Rfc8 {[%clk 0:01:45.6]} 25.
Nxd4 {[%clk 0:01:46.2]} 25... Qa4 {[%clk 0:00:57.5]} 26. Nc6 {[%clk 0:01:36.9]}
26... Rc2 {[%clk 0:00:55.1]} 27. Qb1 {[%clk 0:01:25.6]} 27... Nxc6 {[%clk
0:00:34.7]} 28. dxc6 {[%clk 0:01:24.2]} 28... Qxc6 {[%clk 0:00:36.6]} 29. Rfe1
{[%clk 0:01:02]} 29... d5 {[%clk 0:00:25]} 30. Re6 {[%clk 0:00:57.5]} 30... Bd4+
{[%clk 0:00:25.6]} 31. Kh1 {[%clk 0:00:59]} 31... Qc3 {[%clk 0:00:26.9]} 32. Qd1
{[%clk 0:00:49.8]} 32... Rd2 {[%clk 0:00:23.8]} 33. Re8+ {[%clk 0:00:43]} 33...
Rxe8 {[%clk 0:00:19.6]} 34. Rxe8+ {[%clk 0:00:44.9]} 34... Kg7 {[%clk
0:00:21.2]} 35. Qe1 {[%clk 0:00:46.6]} 35... Qc2 {[%clk 0:00:09.5]} 36. Qe7+
{[%clk 0:00:45.5]} 36... Kh6 {[%clk 0:00:09]} 37. g5+ {[%clk 0:00:44.7]} 37...
Kh5 {[%clk 0:00:08.8]} 38. Qxh7# {[%clk 0:00:46.1]} 1-0

[Event "*** Titled Tuesday Blitz"]
[Site "Chess.com"]
[Date "2019.12.03"]
[Round "1"]
[White "BvsN"]
[Black "Alexander_Donchenko"]
[Result "0-1"]
[WhiteElo "2378"]
[BlackElo "2744"]
[TimeControl "180+2"]
[EndTime "13:07:58 PST"]
[Termination "Alexander_Donchenko won by resignation"]

1. d4 {[%clk 0:03:01.6]} 1... Nf6 {[%clk 0:03:00.4]} 2. c4 {[%clk 0:03:01.5]}
2... e6 {[%clk 0:03:01.2]} 3. Nc3 {[%clk 0:03:01.8]} 3... Bb4 {[%clk 0:03:01.5]}
4. f3 {[%clk 0:03:01.4]} 4... O-O {[%clk 0:03:00.3]} 5. a3 {[%clk 0:03:02.3]}
5... Bxc3+ {[%clk 0:02:57.2]} 6. bxc3 {[%clk 0:03:04.2]} 6... d5 {[%clk
0:02:52.1]} 7. cxd5 {[%clk 0:03:03.2]} 7... exd5 {[%clk 0:02:53]} 8. e3 {[%clk
0:03:04.5]} 8... Re8 {[%clk 0:02:50.9]} 9. Bd3 {[%clk 0:03:05.4]} 9... b6 {[%clk
0:02:51]} 10. Ne2 {[%clk 0:03:06.1]} 10... Ba6 {[%clk 0:02:51.5]} 11. O-O {[%clk
0:03:06.2]} 11... Bxd3 {[%clk 0:02:51.9]} 12. Qxd3 {[%clk 0:03:08.1]} 12... Qc8
{[%clk 0:02:46.7]} 13. Ng3 {[%clk 0:02:49.9]} 13... Qa6 {[%clk 0:02:47.1]} 14.
Qc2 {[%clk 0:02:34.7]} 14... c5 {[%clk 0:02:46.6]} 15. e4 {[%clk 0:02:28.1]}
15... cxd4 {[%clk 0:02:05.3]} 16. cxd4 {[%clk 0:02:28.9]} 16... Qc4 {[%clk
0:01:48.7]} 17. Qf2 {[%clk 0:02:22.5]} 17... dxe4 {[%clk 0:01:34.9]} 18. fxe4
{[%clk 0:02:23]} 18... Nxe4 {[%clk 0:01:26.7]} 19. Qe3 {[%clk 0:01:43.4]} 19...
Nf6 {[%clk 0:01:09.7]} 20. Qf2 {[%clk 0:01:19.1]} 20... Ne4 {[%clk 0:00:35.9]}
21. Qe3 {[%clk 0:01:01.5]} 21... Qc3 {[%clk 0:00:32.8]} 22. Qxc3 {[%clk
0:00:38.1]} 22... Nxc3 {[%clk 0:00:34.7]} 23. Nf5 {[%clk 0:00:36.3]} 23... Nc6
{[%clk 0:00:31.8]} 24. Nd6 {[%clk 0:00:31.8]} 24... Re7 {[%clk 0:00:30.3]} 25.
Bg5 {[%clk 0:00:28.1]} 25... f6 {[%clk 0:00:30.9]} 26. Bh4 {[%clk 0:00:25.8]}
26... Nxd4 {[%clk 0:00:30.4]} 27. Kh1 {[%clk 0:00:24.3]} 27... Rd8 {[%clk
0:00:30]} 28. Nc4 {[%clk 0:00:22]} 28... Nb3 {[%clk 0:00:25.4]} 29. Rae1 {[%clk
0:00:19.5]} 29... Rxe1 {[%clk 0:00:25.8]} 30. Rxe1 {[%clk 0:00:21.4]} 30... Rd4
{[%clk 0:00:22.4]} 31. Nd6 {[%clk 0:00:08.4]} 31... Rxd6 {[%clk 0:00:21.3]} 32.
Bg3 {[%clk 0:00:09.8]} 32... Rd1 {[%clk 0:00:21.8]} 0-1